bitfinex/quotes_BTCUSD_20210402
["timestamp","ask_amount","ask_price","bid_price","bid_amount"]
[1617398805468,0.255429,58681.0,58674.0,0.0046]
[1617398805668,0.14,58680.0,58674.0,0.0046]
[1617398805867,0.255436,58678.0,58674.0,0.9946]
[1617398806070,0.255436,58678.0,58675.0,0.09826337]
[1617398807069,0.255436,58678.0,58671.0,0.0046]
[1617398807070,0.255436,58678.0,58671.0,0.0546]
[1617398807270,0.255436,58678.0,58671.0,0.0046]
[1617398807467,0.00754295,58677.0,58671.0,0.0046]
[1617398809066,0.255448,58675.0,58670.0,0.206]
[1617398809267,0.255448,58675.0,58670.0,0.045]
[1617398809469,0.255448,58675.0,58672.0,0.1]
[1617398810470,0.255448,58675.0,58672.0,0.15054148]
[1617398810671,0.255448,58675.0,58672.0,0.1]
[1617398813092,0.00754308,58674.0,58672.0,0.1]
[1617398813891,0.00754308,58674.0,58672.0,0.08511654]
[1617398818148,0.00754308,58674.0,58671.0,0.05051719]
[1617398823031,0.00754308,58674.0,58673.0,0.387473]
[1617398823232,0.00754308,58674.0,58673.0,0.437473]
[1617398824231,0.00254308,58674.0,58673.0,0.437473]
[1617398824429,0.00254308,58674.0,58673.0,0.445973]
[1617398828647,0.24299208,58680.0,58673.0,0.445973]
[1617398828852,0.215,58679.0,58676.0,0.03912885]
[1617398829449,0.155,58678.0,58676.0,0.03912885]
[1617398829648,0.24299208,58680.0,58676.0,0.03912885]
[1617398830049,0.24299208,58680.0,58676.0,0.03412885]
[1617398830878,0.24299208,58680.0,58673.0,0.0085]
[1617398831278,0.215,58679.0,58673.0,0.0085]
[1617398832898,0.215,58679.0,58671.0,0.002]
[1617398833099,0.24299208,58680.0,58671.0,0.002]
[1617398833567,0.23799208,58680.0,58670.0,0.002]
[1617398833767,0.2,58679.0,58670.0,0.002]
[1617398833969,0.165,58678.0,58670.0,0.002]
[1617398834172,0.20300781,58679.0,58669.0,0.002]
[1617398834374,0.10300781,58679.0,58664.0,0.002]
[1617398834968,0.00300781,58679.0,58664.0,0.002]
[1617398835168,0.00300781,58679.0,58664.0,0.307456]
[1617398835367,0.00300781,58679.0,58664.0,0.052]
[1617398835569,0.00300781,58679.0,58664.0,0.002]
[1617398836371,0.00300781,58679.0,58666.0,0.002]
[1617398836571,0.0048,58678.0,58667.0,0.145]
[1617398836773,0.255449,58680.0,58666.0,0.257451]
[1617398836969,0.259449,58680.0,58667.0,0.387473]
[1617398837169,0.254449,58680.0,58667.0,0.387473]
[1617398837572,0.145,58679.0,58667.0,0.387473]
[1617398837774,0.254449,58680.0,58667.0,0.387473]
[1617398838174,0.254449,58680.0,58667.0,0.437473]
[1617398838972,0.00754308,58679.0,58667.0,0.437473]
[1617398839377,0.1,58678.0,58667.0,0.437473]
[1617398839775,0.26540482,58677.0,58667.0,0.437473]
[1617398839976,0.1,58676.0,58667.0,0.437473]
[1617398840978,0.255464,58678.0,58667.0,0.437473]
[1617398841180,0.25547,58677.0,58666.0,0.002]
[1617398841779,0.26540482,58676.0,58666.0,0.002]
[1617398842179,0.26940482,58676.0,58663.0,0.35547]
[1617398842381,0.26940482,58676.0,58664.0,0.387473]
[1617398842581,0.26940482,58676.0,58664.0,0.437473]
[1617398842784,0.255476,58675.0,58664.0,0.437473]
[1617398843604,0.250476,58675.0,58664.0,0.437473]
[1617398844004,0.55110519,58675.0,58662.0,0.002]
[1617398844403,0.21754359,58674.0,58662.0,0.002]
[1617398844605,0.51817278,58674.0,58662.0,0.002]
[1617398845008,0.0044,58672.0,58662.0,0.002]
[1617398845206,0.30502919,58672.0,58663.0,0.02825348]
[1617398845406,0.155,58671.0,58663.0,0.02825348]
[1617398845806,0.26540482,58670.0,58663.0,0.02825348]
[1617398846430,0.255509,58668.0,58663.0,0.02825348]
[1617398846629,0.255509,58668.0,58663.0,0.02325348]
[1617398848224,0.17,58667.0,58663.0,0.02325348]
[1617398849513,0.255528,58666.0,58663.0,0.02325348]
[1617398849713,0.692558,58666.0,58663.0,0.02325348]
[1617398850115,0.62062919,58665.0,58663.0,0.02325348]
[1617398850314,0.23916321,58664.0,58663.0,0.02325348]
[1617398850511,0.57416321,58664.0,58663.0,0.02325348]
[1617398855512,0.58170758,58664.0,58663.0,0.02325348]
[1617398855714,1.00918058,58664.0,58663.0,0.02325348]
[1617398855912,0.62170758,58664.0,58663.0,0.02325348]
[1617398856316,0.92918058,58664.0,58663.0,0.02325348]
[1617398860369,1.28427058,58664.0,58663.0,0.02325348]
[1617398860569,1.47927058,58664.0,58663.0,0.02325348]
[1617398863411,1.58489977,58664.0,58635.0,0.30971249]
[1617398863689,0.127797,58654.0,58645.0,0.0058]
[1617398865118,0.255593,58650.0,58645.0,0.0058]
[1617398865715,0.255593,58650.0,58645.0,0.0008]
[1617398866117,0.165,58649.0,58645.0,0.0008]
[1617398866319,0.255592,58647.0,58637.0,0.035]
[1617398866519,0.255592,58647.0,58641.0,0.387473]
[1617398866718,0.255592,58647.0,58645.0,0.382473]
[1617398866939,0.255592,58647.0,58646.0,0.387473]
[1617398867141,0.255592,58647.0,58646.0,0.472473]
[1617398867943,0.255592,58647.0,58646.0,0.085]
[1617398868145,0.255592,58647.0,58646.0,0.035]
[1617398870168,0.255592,58647.0,58638.0,0.002]
[1617398870370,0.255592,58647.0,58639.0,0.9946]
[1617398870567,0.255592,58647.0,58643.0,0.387615]
[1617398870773,0.255592,58647.0,58640.0,0.035]
[1617398870774,0.255592,58647.0,58646.0,0.387615]
[1617398871168,0.255592,58647.0,58646.0,0.422615]
[1617398871566,0.255592,58647.0,58646.0,0.035]
[1617398872992,0.245592,58647.0,58646.0,0.035]
[1617398873994,0.245592,58647.0,58635.0,0.035]
[1617398874194,0.245592,58647.0,58636.0,0.9946]
[1617398874394,0.245592,58647.0,58637.0,0.035]
[1617398874592,0.245592,58647.0,58638.0,1.02071905]
[1617398874818,0.245592,58647.0,58643.0,0.22]
[1617398875016,0.245592,58647.0,58646.0,0.387615]
[1617398875216,0.245592,58647.0,58646.0,0.422615]
[1617398877016,0.245592,58647.0,58646.0,0.417615]
[1617398877216,0.245592,58647.0,58646.0,0.422615]
[1617398877852,0.255585,58650.0,58646.0,0.04]
[1617398878053,0.255585,58650.0,58649.0,0.05897505]
[1617398878254,0.255585,58650.0,58649.0,0.06397505]
[1617398878454,0.255585,58650.0,58649.0,0.04]
[1617398878734,0.255585,58650.0,58649.0,0.06621432]
[1617398878932,0.555585,58650.0,58649.0,0.06621432]
[1617398879930,0.555585,58650.0,58649.0,0.06121432]
[1617398880170,0.555585,58650.0,58649.0,0.06025632]
[1617398881570,0.555585,58650.0,58649.0,0.06525632]
[1617398882990,0.555585,58650.0,58649.0,0.06025632]
[1617398883794,0.555585,58650.0,58649.0,0.11926011]
[1617398884192,0.555585,58650.0,58649.0,0.14304579]
[1617398884392,0.555585,58650.0,58649.0,0.16928364]
[1617398884792,0.555585,58650.0,58649.0,0.17428364]
[1617398886428,0.555585,58650.0,58649.0,0.11527985]
[1617398886827,0.56653521,58650.0,58649.0,0.06527985]
[1617398887027,0.56653521,58650.0,58649.0,0.03123785]
[1617398887225,0.56653521,58650.0,58649.0,0.06527985]
[1617398888253,0.56653521,58650.0,58649.0,0.06027985]
[1617398888450,0.56653521,58650.0,58649.0,0.15127985]
[1617398890255,0.56653521,58650.0,58649.0,0.17127985]
[1617398891273,0.56653521,58650.0,58649.0,0.19327985]
[1617398892075,0.56653521,58650.0,58649.0,0.06027985]
[1617398892278,0.56653521,58650.0,58649.0,0.02623785]
[1617398892483,0.56653521,58650.0,58649.0,0.13327985]
[1617398892680,0.56653521,58650.0,58649.0,0.107042]
[1617398892877,0.56653521,58650.0,58649.0,0.13378029]
[1617398893077,0.56653521,58650.0,58649.0,0.20378029]
[1617398893521,0.82914161,58650.0,58649.0,0.20378029]
[1617398893807,0.56653521,58650.0,58649.0,0.20378029]
[1617398894004,0.56653521,58650.0,58649.0,0.25378029]
[1617398894605,0.56653521,58650.0,58649.0,0.20378029]
[1617398903486,0.56653521,58650.0,58649.0,0.14778029]
[1617398904105,0.56653521,58650.0,58649.0,0.21778029]
[1617398905310,0.8621644,58650.0,58649.0,0.06078029]
[1617398905510,0.56153521,58650.0,58649.0,0.06078029]
[1617398905709,0.56153521,58650.0,58649.0,0.14878029]
[1617398905913,0.31095021,58650.0,58649.0,0.14878029]
[1617398907925,0.31095021,58650.0,58649.0,0.06078029]
[1617398908527,0.31095021,58650.0,58649.0,0.02673829]
[1617398908722,0.31095021,58650.0,58649.0,0.06078029]
[1617398909964,0.31095021,58650.0,58649.0,0.060541]
[1617398911173,0.01095021,58650.0,58649.0,0.060541]
[1617398911584,0.01095021,58650.0,58649.0,0.448154]
[1617398911783,0.01095021,58650.0,58649.0,0.498154]
[1617398912187,0.00035021,58650.0,58649.0,0.498154]
[1617398912379,0.00754617,58650.0,58649.0,0.643154]
[1617398912786,0.00754617,58650.0,58649.0,0.898698]
[1617398913981,0.00754617,58650.0,58649.0,1.893298]
[1617398914211,0.00754617,58650.0,58649.0,0.96836265]
[1617398914406,0.00754617,58650.0,58649.0,1.96296265]
[1617398914810,0.00754617,58650.0,58649.0,2.36596265]
[1617398915011,0.00754617,58650.0,58649.0,2.36317039]
[1617398915606,0.00754617,58650.0,58649.0,2.46317039]
[1617398916216,0.00754617,58650.0,58649.0,2.80248494]
[1617398916414,0.00754617,58650.0,58649.0,2.70517039]
[1617398916614,0.00754617,58650.0,58649.0,2.75517039]
[1617398917228,0.00754617,58650.0,58649.0,2.75317039]
[1617398917834,0.00754617,58650.0,58649.0,1.75857039]
[1617398918627,0.00754617,58650.0,58649.0,1.86957039]
[1617398918830,0.00754617,58650.0,58649.0,2.92483644]
[1617398919228,0.00754617,58650.0,58649.0,3.07814644]
[1617398919456,0.00754617,58650.0,58649.0,3.01948039]
[1617398920056,0.00730124,58650.0,58649.0,3.01948039]
[1617398920656,0.00730124,58650.0,58649.0,3.11879494]
[1617398920854,0.00730124,58650.0,58649.0,3.01948039]
[1617398921255,0.00730124,58650.0,58649.0,3.05948039]
[1617398921455,0.00730124,58650.0,58649.0,3.15879494]
[1617398922891,0.00730124,58650.0,58649.0,3.04848039]
[1617398923289,0.00030124,58650.0,58649.0,3.20848039]
[1617398923487,0.00030124,58650.0,58649.0,2.57127265]
[1617398923750,0.00030124,58650.0,58649.0,2.58127265]
[1617398924764,0.00030124,58650.0,58649.0,2.68127265]
[1617398925552,0.00030124,58650.0,58649.0,3.22127265]
[1617398925963,0.29593043,58680.0,58651.0,0.26140238]
[1617398926158,0.006,58671.0,58665.0,0.26140238]
[1617398926357,0.305,58679.0,58666.0,0.034042]
[1617398926358,0.004,58675.0,58666.0,0.034042]
[1617398927153,0.004,58675.0,58667.0,0.011]
[1617398928754,0.30013043,58678.0,58667.0,0.011]
[1617398929155,0.395,58676.0,58667.0,0.011]
[1617398929354,0.69093043,58676.0,58667.0,0.011]
[1617398929954,0.387613,58675.0,58667.0,0.011]
[1617398930157,0.68354343,58675.0,58666.0,0.01]
[1617398930356,0.16,58674.0,58666.0,0.01]
[1617398930560,0.004,58675.0,58667.0,0.255466]
[1617398930759,0.0046,58679.0,58668.0,0.047042]
[1617398931160,0.475,58678.0,58668.0,0.047042]
[1617398931356,0.77093043,58678.0,58668.0,0.047042]
[1617398931957,0.77093043,58678.0,58668.0,0.036042]
[1617398932158,0.405,58677.0,58668.0,0.036042]
[1617398932360,0.70093043,58677.0,58668.0,0.036042]
[1617398932774,0.405,58677.0,58668.0,0.036042]
[1617398933176,0.405,58677.0,58670.0,0.255457]
[1617398933377,0.405,58677.0,58671.0,0.034042]
[1617398933578,0.395,58676.0,58671.0,0.034042]
[1617398934981,0.0046,58679.0,58671.0,0.034042]
[1617398935202,0.0046,58679.0,58672.0,0.305451]
[1617398935407,0.0046,58679.0,58673.0,0.034042]
[1617398938049,0.325,58678.0,58673.0,0.034042]
[1617398939925,0.325,58678.0,58674.0,0.31640238]
[1617398940132,0.29593043,58698.0,58675.0,0.034042]
[1617398940328,0.0046,58690.0,58678.0,0.002]
[1617398940562,0.0046,58690.0,58679.0,0.02537083]
[1617398940761,0.0046,58690.0,58680.0,0.054]
[1617398940961,0.004,58690.0,58683.0,0.042]
[1617398941157,1.33613043,58697.0,58683.0,0.042]
[1617398941158,0.0046,58694.0,58683.0,0.042]
[1617398941359,0.0046,58694.0,58684.0,0.054]
[1617398941360,0.387613,58693.0,58684.0,0.054]
[1617398941562,0.387613,58693.0,58685.0,0.034042]
[1617398941563,0.29593043,58692.0,58685.0,0.034042]
[1617398941757,0.82352643,58691.0,58685.0,0.034042]
[1617398941962,0.82352643,58691.0,58686.0,0.054]
[1617398942158,0.142596,58691.0,58687.0,0.034042]
[1617398942359,0.142596,58691.0,58687.0,0.074042]
[1617398942557,0.1444318,58693.0,58688.0,0.054]
[1617398942758,0.387613,58692.0,58689.0,0.034042]
[1617398942959,0.387613,58690.0,58689.0,0.034042]
[1617398943184,0.68354343,58690.0,58689.0,0.034042]
[1617398944583,0.85854343,58690.0,58689.0,0.034042]
[1617398944784,0.85831169,58690.0,58689.0,0.034042]
[1617398945186,0.562613,58690.0,58689.0,0.034042]
[1617398945386,0.562613,58690.0,58689.0,0.150042]
[1617398945588,0.387613,58690.0,58689.0,0.150042]
[1617398946608,0.387613,58690.0,58689.0,0.195042]
[1617398947810,0.3873809,58690.0,58689.0,0.195042]
[1617398948012,0.3773809,58690.0,58689.0,0.295042]
[1617398948833,0.3773809,58690.0,58689.0,0.245042]
[1617398950034,0.3673809,58690.0,58689.0,0.245042]
[1617398950234,0.3673809,58690.0,58689.0,0.295042]
[1617398951057,0.3673809,58690.0,58689.0,0.190042]
[1617398951859,0.3623809,58690.0,58689.0,0.190042]
[1617398952061,0.3623809,58690.0,58689.0,0.290042]
[1617398954545,0.3623809,58690.0,58689.0,0.245042]
[1617398954753,0.3573809,58690.0,58689.0,0.245042]
[1617398954945,0.3573809,58690.0,58689.0,0.029042]
[1617398955147,0.0044,58689.0,58677.0,0.255417]
[1617398955347,0.142596,58688.0,58678.0,0.029042]
[1617398955547,0.0044,58689.0,58678.0,0.029042]
[1617398955745,0.387445,58688.0,58679.0,0.14092208]
[1617398955946,0.387445,58688.0,58680.0,0.029042]
[1617398956145,0.387445,58688.0,58681.0,0.115]
[1617398956350,0.387445,58688.0,58682.0,0.029042]
[1617398956744,0.145,58687.0,58682.0,0.029042]
[1617398956946,0.387445,58686.0,58683.0,0.116]
[1617398957149,0.255422,58691.0,58684.0,0.029042]
[1617398957351,0.112558,58690.0,58684.0,0.029042]
[1617398957545,0.135,58689.0,58686.0,0.1]
[1617398957747,0.382445,58688.0,58687.0,0.029042]
[1617398958146,0.382445,58688.0,58687.0,0.145042]
[1617398958347,0.382445,58688.0,58687.0,0.195042]
[1617398960351,0.382445,58688.0,58687.0,0.079042]
[1617398960752,0.382445,58688.0,58687.0,0.029042]
[1617398960951,0.382445,58688.0,58681.0,0.031042]
[1617398961352,0.382445,58688.0,58682.0,0.02495743]
[1617398962963,0.14,58687.0,58682.0,0.02495743]
[1617398963164,0.112558,58686.0,58682.0,0.02495743]
[1617398967012,0.112558,58686.0,58682.0,0.05399943]
[1617398967211,0.112558,58686.0,58683.0,0.02493945]
[1617398968411,0.107558,58686.0,58683.0,0.02493945]
[1617398970239,0.107558,58686.0,58682.0,0.02499845]
[1617398970641,0.107558,58686.0,58684.0,0.02499839]
[1617398970837,0.107558,58686.0,58681.0,0.0249979]
[1617398974361,0.10229,58686.0,58681.0,0.0249979]
[1617398976588,0.10229,58686.0,58680.0,0.02498426]
[1617398977217,0.10229,58686.0,58684.0,0.02498159]
[1617398977418,0.10229,58686.0,58684.0,0.05402359]
[1617398977617,0.10229,58686.0,58685.0,0.02498077]
[1617398978621,0.08843905,58686.0,58685.0,0.02498077]
[1617398979218,0.0708088,58686.0,58685.0,0.02498077]
[1617398979894,0.0658088,58686.0,58685.0,0.02498077]
[1617398980093,0.04068734,58686.0,58685.0,0.02498077]
[1617398980899,0.04068734,58686.0,58679.0,0.08757871]
[1617398980900,0.04068734,58686.0,58679.0,0.11255472]
[1617398981101,0.55111369,58692.0,58686.0,0.01762048]
[1617398981299,0.387448,58691.0,58686.0,0.01762048]
[1617398981496,1.20814669,58691.0,58686.0,0.01762048]
[1617398981697,1.20814669,58691.0,58687.0,0.02497423]
[1617398983098,0.375,58690.0,58687.0,0.02497423]
[1617398983298,0.035684,58689.0,58687.0,0.02497423]
[1617398983500,0.33138269,58689.0,58687.0,0.02497423]
[1617398983697,0.035684,58689.0,58687.0,0.02497423]
[1617398987006,0.030684,58689.0,58687.0,0.02497423]
[1617398988408,0.195,58688.0,58687.0,0.02497423]
[1617398988612,0.68314669,58688.0,58687.0,0.02497423]
[1617398988810,0.85314669,58688.0,58687.0,0.02497423]
[1617398997491,0.84814669,58688.0,58687.0,0.02497423]
[1617398999000,0.84314669,58688.0,58687.0,0.02497423]
[1617399003066,0.8429307,58688.0,58687.0,0.02497423]
[1617399005272,1.0379307,58688.0,58687.0,0.02497423]
[1617399006097,0.752448,58688.0,58687.0,0.02497423]
[1617399006298,1.0379307,58688.0,58687.0,0.02497423]
[1617399008923,1.0329307,58688.0,58687.0,0.02497423]
[1617399010323,0.8379307,58688.0,58687.0,0.02497423]
[1617399012542,1.0329307,58688.0,58687.0,0.02497423]
[1617399014696,0.8379307,58688.0,58687.0,0.02497423]
[1617399016092,1.0329307,58688.0,58687.0,0.02497423]
[1617399016296,0.8379307,58688.0,58687.0,0.02497423]
[1617399016493,1.0329307,58688.0,58687.0,0.02497423]
[1617399017321,0.8379307,58688.0,58687.0,0.02497423]
[1617399020720,1.0329307,58688.0,58687.0,0.02497423]
[1617399021123,0.8379307,58688.0,58687.0,0.02497423]
[1617399021323,1.0329307,58688.0,58687.0,0.02497423]
[1617399021724,1.03910103,58688.0,58687.0,0.02497423]
[1617399023149,0.84410103,58688.0,58687.0,0.02497423]
[1617399023553,0.83910103,58688.0,58687.0,0.02497423]
[1617399024573,1.03410103,58688.0,58687.0,0.02497423]
[1617399025776,0.83910103,58688.0,58687.0,0.02497423]
[1617399028401,1.03410103,58688.0,58687.0,0.02497423]
[1617399031330,0.83910103,58688.0,58687.0,0.02497423]
[1617399034547,0.83410103,58688.0,58687.0,0.02497423]
[1617399037481,0.56361833,58688.0,58687.0,0.02497423]
[1617399037701,0.17617033,58688.0,58687.0,0.05297423]
[1617399037902,0.00617033,58688.0,58687.0,0.08201623]
[1617399038903,0.00017033,58688.0,58687.0,0.08201623]
[1617399042248,1.18925303,58697.0,58687.0,0.08174823]
[1617399042447,0.387424,58696.0,58687.0,0.08174823]
[1617399042650,0.71,58695.0,58687.0,0.08174823]
[1617399042850,0.030712,58694.0,58688.0,0.02231421]
[1617399043456,0.465,58693.0,58689.0,0.028]
[1617399043654,0.387424,58690.0,58689.0,0.028]
[1617399043855,0.65307703,58690.0,58689.0,0.057042]
[1617399044126,0.387424,58690.0,58689.0,0.107042]
[1617399044325,0.65307703,58690.0,58689.0,0.107042]
[1617399044527,0.602424,58690.0,58689.0,0.057042]
[1617399045127,0.387424,58690.0,58689.0,0.057042]
[1617399046924,0.387424,58690.0,58689.0,0.028]
[1617399047124,0.387424,58690.0,58689.0,0.057042]
[1617399049332,0.396603,58690.0,58689.0,0.057042]
[1617399051742,0.009179,58690.0,58689.0,0.057042]
[1617399052141,0.004179,58690.0,58689.0,0.057042]
[1617399052744,0.004179,58690.0,58689.0,0.029042]
[1617399053146,1.18333203,58697.0,58686.0,0.01762048]
[1617399053350,0.387424,58696.0,58686.0,0.01762048]
[1617399053551,1.48715603,58696.0,58687.0,0.002]
[1617399053751,1.47715603,58696.0,58691.0,0.2]
[1617399053954,1.47715603,58696.0,58692.0,0.029042]
[1617399054152,0.835,58695.0,58692.0,0.029042]
[1617399054353,0.030712,58694.0,58692.0,0.029042]
[1617399055352,0.15,58693.0,58692.0,0.029042]
[1617399055550,0.537424,58693.0,58692.0,0.029042]
[1617399055976,0.527424,58693.0,58692.0,0.029042]
[1617399056977,0.527424,58693.0,58690.0,0.029042]
[1617399057178,0.387424,58692.0,58690.0,0.029042]
[1617399057577,0.382424,58692.0,58690.0,0.029042]
[1617399058475,0.38814824,58692.0,58690.0,0.029042]
[1617399059974,0.63788027,58692.0,58689.0,0.029042]
[1617399060168,0.38814824,58692.0,58689.0,0.029042]
[1617399060370,0.00754083,58691.0,58689.0,0.029042]
[1617399060567,0.030712,58690.0,58689.0,0.029042]
[1617399062370,0.025712,58690.0,58689.0,0.029042]
[1617399062567,0.00325283,58691.0,58689.0,0.029042]
[1617399062771,0.382425,58690.0,58689.0,0.029042]
[1617399063171,0.382425,58690.0,58686.0,0.01762048]
[1617399063572,0.382425,58690.0,58688.0,0.2]
[1617399063873,0.382425,58690.0,58689.0,0.029042]
[1617399064075,0.38814959,58690.0,58689.0,0.05126516]
[1617399065671,0.38814959,58690.0,58689.0,0.11326516]
[1617399066072,0.39569061,58690.0,58689.0,0.11326516]
[1617399066489,0.01326561,58690.0,58689.0,0.11326516]
[1617399066688,0.01326561,58690.0,58689.0,0.21326516]
[1617399069306,0.01326561,58690.0,58689.0,0.60067916]
[1617399069501,0.01326561,58690.0,58689.0,0.82067916]
[1617399070098,0.01326561,58690.0,58689.0,0.75867916]
[1617399071724,0.01326561,58690.0,58689.0,1.01406746]
[1617399071932,0.01326561,58690.0,58689.0,0.75867916]
[1617399072727,0.01326561,58690.0,58689.0,0.53867916]
[1617399076402,0.00826561,58690.0,58689.0,0.53867916]
[1617399077002,0.00826561,58690.0,58689.0,0.70367916]
[1617399078203,0.00826561,58690.0,58689.0,0.53867916]
[1617399088080,0.00026561,58690.0,58689.0,0.53867916]
[1617399088281,0.00026561,58690.0,58689.0,0.79404316]
[1617399088482,0.00026561,58690.0,58689.0,0.95904316]
[1617399090375,0.00599003,58690.0,58689.0,0.95904316]
[1617399091577,0.00572442,58690.0,58689.0,0.95404316]
[1617399092376,0.00072442,58690.0,58689.0,0.95404316]
[1617399092579,0.00072442,58690.0,58689.0,1.20943146]
[1617399092782,0.00012442,58690.0,58689.0,1.20943146]
[1617399092978,0.00012442,58690.0,58689.0,0.95404316]
[1617399093378,0.00012442,58690.0,58689.0,1.20943146]
[1617399093580,0.0005,58694.0,58692.0,0.255352]
[1617399093779,0.0005,58694.0,58693.0,0.4329993]
[1617399093979,0.0005,58694.0,58693.0,0.4829993]
[1617399094180,5.28367014,58700.0,58694.0,0.1]
[1617399094384,1.202425,58699.0,58695.0,0.024042]
[1617399094582,0.24523203,58698.0,58695.0,0.024042]
[1617399094779,1.207425,58697.0,58695.0,0.024042]
[1617399094982,1.02,58696.0,58695.0,0.024042]
[1617399095182,1.64765703,58696.0,58695.0,0.024042]
[1617399095615,1.64265703,58696.0,58695.0,0.024042]
[1617399096013,1.64838093,58696.0,58695.0,0.024042]
[1617399097415,1.64838093,58696.0,58691.0,8.004e-05]
[1617399097618,0.825,58695.0,58691.0,8.004e-05]
[1617399097817,0.195,58694.0,58691.0,8.004e-05]
[1617399098040,0.43523203,58694.0,58691.0,8.004e-05]
[1617399098835,0.67028432,58694.0,58691.0,8.004e-05]
[1617399099039,0.26,58693.0,58691.0,8.004e-05]
[1617399099241,0.24023203,58692.0,58691.0,8.004e-05]
[1617399099440,0.73523203,58692.0,58691.0,8.004e-05]
[1617399099637,0.43523203,58692.0,58691.0,8.004e-05]
[1617399099838,0.195,58692.0,58691.0,8.004e-05]
[1617399100039,0.004,58695.0,58691.0,8.004e-05]
[1617399100040,0.825,58694.0,58691.0,8.004e-05]
[1617399100241,0.195,58693.0,58691.0,8.004e-05]
[1617399100443,0.23523203,58692.0,58691.0,8.004e-05]
[1617399100661,0.199,58695.0,58691.0,8.004e-05]
[1617399100859,0.195,58694.0,58691.0,8.004e-05]
[1617399101059,0.565404,58693.0,58691.0,8.004e-05]
[1617399101263,0.23523203,58692.0,58691.0,8.004e-05]
[1617399101660,0.59611203,58692.0,58691.0,8.004e-05]
[1617399102061,0.75111203,58692.0,58691.0,8.004e-05]
[1617399104089,0.94611203,58692.0,58691.0,8.004e-05]
[1617399104297,0.75111203,58692.0,58691.0,8.004e-05]
[1617399106339,0.51588,58692.0,58691.0,8.004e-05]
[1617399106539,0.36088,58692.0,58691.0,8.004e-05]
[1617399106737,0.00572413,58694.0,58691.0,8.004e-05]
[1617399107336,0.23523203,58698.0,58691.0,8.004e-05]
[1617399107537,0.34088,58697.0,58691.0,8.004e-05]
[1617399107734,1.40111203,58697.0,58691.0,8.004e-05]
[1617399109339,1.06023203,58696.0,58691.0,8.004e-05]
[1617399109541,0.55111203,58695.0,58691.0,8.004e-05]
[1617399109738,0.53111203,58695.0,58691.0,8.004e-05]
[1617399110139,1.01523203,58694.0,58691.0,8.004e-05]
[1617399110339,0.34088,58693.0,58691.0,8.004e-05]
[1617399111569,5.22447014,58700.0,58691.0,8.004e-05]
[1617399111768,0.34088,58699.0,58692.0,0.002]
[1617399111973,0.34088,58697.0,58692.0,0.002]
[1617399112169,0.53111203,58697.0,58692.0,0.002]
[1617399112369,0.34088,58697.0,58692.0,0.002]
[1617399112570,0.825,58696.0,58692.0,0.002]
[1617399112765,0.825,58696.0,58692.0,0.042]
[1617399113365,0.17,58695.0,58692.0,0.042]
[1617399113571,0.17,58695.0,58693.0,0.255345]
[1617399113789,0.17,58695.0,58694.0,0.04641785]
[1617399113988,0.0057239,58697.0,58694.0,0.04641785]
[1617399114188,0.0057239,58697.0,58694.0,0.14641785]
[1617399114388,0.0057239,58697.0,58695.0,0.02237536]
[1617399114592,0.0057239,58697.0,58696.0,0.2]
[1617399114788,0.0057239,58697.0,58696.0,0.224042]
[1617399114992,5.02996201,58700.0,58696.0,0.274042]
[1617399115189,0.34088,58699.0,58696.0,0.274042]
[1617399115389,1.08588,58699.0,58696.0,0.374042]
[1617399115590,0.19023203,58698.0,58696.0,0.374042]
[1617399115788,0.75,58699.0,58696.0,0.374042]
[1617399115988,0.335884,58697.0,58696.0,0.374042]
[1617399116190,5.02996201,58700.0,58696.0,0.374042]
[1617399116417,5.02996201,58700.0,58696.0,0.274042]
[1617399116418,0.335884,58699.0,58696.0,0.274042]
[1617399116614,0.335884,58699.0,58697.0,0.1]
[1617399116814,0.335884,58699.0,58698.0,0.024042]
[1617399117017,0.335884,58699.0,58697.0,0.255328]
[1617399117214,0.335884,58699.0,58697.0,0.390328]
[1617399117814,5.02996201,58700.0,58697.0,0.390328]
[1617399117815,0.345,58698.0,58697.0,0.390328]
[1617399118314,5.02996201,58700.0,58697.0,0.390328]
[1617399118516,0.335884,58699.0,58697.0,0.390328]
[1617399118712,5.02996201,58700.0,58697.0,0.390328]
[1617399118924,0.335884,58699.0,58697.0,0.34164112]
[1617399119143,5.02996201,58700.0,58697.0,0.34164112]
[1617399119544,0.335884,58699.0,58697.0,0.34164112]
[1617399119743,0.605884,58699.0,58697.0,0.34164112]
[1617399120353,0.335884,58699.0,58697.0,0.34164112]
[1617399121144,5.02996201,58700.0,58697.0,0.34164112]
[1617399121344,0.335884,58699.0,58697.0,0.34164112]
[1617399121549,5.02996201,58700.0,58697.0,0.34164112]
[1617399121790,0.335884,58699.0,58697.0,0.34164112]
[1617399121992,0.335884,58699.0,58698.0,0.4]
[1617399122192,0.335884,58699.0,58698.0,0.585]
[1617399122588,0.730884,58699.0,58698.0,1.0229]
[1617399122988,0.725884,58699.0,58698.0,1.0229]
[1617399123388,0.330884,58699.0,58698.0,1.0229]
[1617399124395,5.02996201,58700.0,58698.0,1.0229]
[1617399124596,5.02996201,58700.0,58699.0,0.1]
[1617399124794,5.02996201,58700.0,58699.0,0.37]
[1617399124996,4.77496201,58700.0,58699.0,0.62042102]
[1617399125197,4.77496201,58700.0,58699.0,0.67171566]
[1617399125595,4.77496201,58700.0,58699.0,0.42]
[1617399125799,4.51996201,58700.0,58699.0,0.67171566]
[1617399126798,4.26496201,58700.0,58699.0,0.67171566]
[1617399127424,4.26496201,58700.0,58699.0,0.42]
[1617399127621,4.26496201,58700.0,58699.0,1.02945088]
[1617399128223,4.26496201,58700.0,58699.0,2.23376259]
[1617399128426,4.26496201,58700.0,58699.0,2.02405088]
[1617399128623,4.26496201,58700.0,58699.0,1.97947695]
[1617399128824,4.26496201,58700.0,58699.0,1.97974495]
[1617399129024,4.26496201,58700.0,58699.0,2.02431888]
[1617399129227,4.26496201,58700.0,58699.0,2.23403059]
[1617399129644,4.26496201,58700.0,58699.0,1.23943059]
[1617399129843,4.26496201,58700.0,58699.0,2.02431888]
[1617399130042,4.26496201,58700.0,58699.0,2.48931559]
[1617399130444,4.26496201,58700.0,58699.0,2.27960388]